bitfinex/quotes_SOLUSD_20240716
["timestamp","ask_amount","ask_price","bid_price","bid_amount"]
[1721119050242,17.7794215,153.87,153.77,45.0]
[1721119050543,6.5012,153.82,153.77,45.0]
[1721119050759,16.2495,153.86,153.77,45.0]
[1721119051070,11.0,153.87,153.78,23.10924927]
[1721119051377,11.0,153.87,153.86,6.4994]
[1721119051669,11.0,153.87,153.86,46.29947746]
[1721119052453,11.0,153.87,153.86,52.79887746]
[1721119053160,11.0,153.87,153.86,46.29947746]
[1721119054262,11.0,153.87,153.86,52.79887746]
[1721119055778,11.0,153.87,153.86,46.29947746]
[1721119056381,11.0,153.87,153.86,59.41997746]
[1721119056784,11.0,153.87,153.86,52.92054863]
[1721119057172,11.0,153.87,153.86,59.41994863]
[1721119057482,11.0,153.87,153.86,51.6211]
[1721119057778,11.0,153.87,153.86,58.1205]
[1721119057983,11.0,153.87,153.86,59.41999197]
[1721119059161,11.0,153.87,153.86,51.6211]
[1721119059356,11.0,153.87,153.86,52.92058867]
[1721119059562,11.0,153.87,153.86,59.41998867]
[1721119060459,0.8363192,153.9,153.88,6.4981]
[1721119060772,0.8363192,153.9,153.89,51.4981]
[1721119062882,0.8363192,153.9,153.89,71.4981]
[1721119064005,0.8363192,153.9,153.89,65.0]
[1721119064582,0.8363192,153.9,153.89,45.0]
[1721119064788,0.8363192,153.9,153.86,6.6211]
[1721119064974,0.8363192,153.9,153.87,1.29937778]
[1721119066272,6.4984,153.89,153.87,1.29937778]
[1721119066480,6.4984,153.89,153.83,1.29963932]
[1721119066789,6.4981,153.89,153.83,1.29963932]
[1721119066982,0.8363192,153.9,153.83,7.80013932]
[1721119067187,0.8363192,153.9,153.83,1.29963932]
[1721119067395,0.8363192,153.9,153.84,16.25]
[1721119067766,0.8363192,153.9,153.85,1.29952655]
[1721119068162,0.8363192,153.9,153.84,6.5002]
[1721119068463,0.8363192,153.9,153.85,6.4998]
[1721119068669,0.8363192,153.9,153.86,7.79867008]
[1721119068888,0.8363192,153.9,153.86,1.29947008]
[1721119069084,0.8363192,153.9,153.86,45.0]
[1721119069386,0.8363192,153.9,153.87,1.29941468]
[1721119070867,0.8363192,153.9,153.87,7.79831468]
[1721119071089,0.8363192,153.9,153.88,45.0]
[1721119071272,0.8363192,153.9,153.89,1.29931246]
[1721119072372,0.8363192,153.9,153.89,7.79741246]
[1721119072590,0.8363192,153.9,153.89,51.4981]
[1721119072798,0.8363192,153.9,153.89,67.7434]
[1721119072962,0.8363192,153.9,153.89,87.7434]
[1721119074194,0.8363192,153.9,153.89,65.0]
[1721119074379,0.8363192,153.9,153.89,20.0]
[1721119074575,0.8363192,153.9,153.88,37.54542074]
[1721119074901,0.8363192,153.9,153.88,22.7446]
[1721119075060,0.8363192,153.9,153.89,1.29921401]
[1721119075463,0.8363192,153.9,153.89,1.2992128]
[1721119075777,0.8363192,153.9,153.89,1.29911867]
[1721119076588,0.8363192,153.9,153.89,1.29920496]
[1721119076775,0.8363192,153.9,153.89,7.79730496]
[1721119077292,0.8363192,153.9,153.89,51.4981]
[1721119078368,0.8363192,153.9,153.89,52.79705586]
[1721119078568,0.04096899,153.91,153.89,135.94789938]
[1721119078792,104.99408088,153.99,153.95,22.7339]
[1721119079090,104.99408088,153.99,153.96,45.0]
[1721119079880,0.8363192,154.06,153.98,19.6]
[1721119080194,0.8363192,154.06,153.99,45.0]
[1721119080399,0.8363192,154.06,153.96,45.0]
[1721119080571,0.8363192,154.06,153.97,1.29871847]
[1721119080771,7.3276192,154.06,153.97,1.29871847]
[1721119080968,10.8363192,154.06,153.97,1.29871847]
[1721119081179,10.0,154.05,153.96,45.0]
[1721119081387,6.4931,154.01,153.96,45.0]
[1721119081592,6.4925,154.03,153.96,45.0]
[1721119081790,20.0,154.02,153.96,45.0]
[1721119082199,20.0,154.02,153.91,43.83]
[1721119082200,20.0,154.02,153.97,1.29873814]
[1721119082403,20.0,154.04,153.97,7.79333814]
[1721119082572,20.0,154.04,153.98,45.0]
[1721119082779,0.8363192,154.06,153.99,1.29838422]
[1721119082780,20.8363192,154.06,153.99,1.29838422]
[1721119083229,20.8363192,154.06,153.98,45.0]
[1721119083500,20.8363192,154.06,153.99,1.29854839]
[1721119083800,20.8363192,154.06,153.98,45.0]
[1721119083973,20.8363192,154.06,153.96,1.29859683]
[1721119084177,6.4926,154.02,153.95,16.2385]
[1721119084391,6.4926,154.02,153.91,43.83]
[1721119084392,6.4926,154.02,153.91,60.0726]
[1721119084596,6.4932,154.01,153.92,20.0]
[1721119084796,30.8363192,154.06,153.92,20.0]
[1721119085098,10.0,154.04,153.89,6.4981]
[1721119085300,16.4255,154.03,153.87,16.2468]
[1721119085479,30.0,154.02,153.87,16.2468]
[1721119085667,46.2321,154.02,153.87,16.2468]
[1721119085872,36.2321,154.02,153.88,1.2991457]
[1721119086092,6.4944,153.98,153.9,6.4976]
[1721119086299,36.2321,154.02,153.88,6.4982]
[1721119086300,26.495,153.97,153.88,6.4982]
[1721119086504,6.4952,153.96,153.88,6.4982]
[1721119086673,6.4954,153.96,153.89,1.29917222]
[1721119086873,26.3483,153.97,153.87,16.2468]
[1721119087725,6.4952,153.96,153.88,1.29937172]
[1721119087876,20.0,153.95,153.88,1.29937172]
[1721119088402,6.4961,153.94,153.88,1.29937172]
[1721119088573,20.0,153.93,153.86,6.4992]
[1721119088775,20.0,153.93,153.87,1.29936444]
[1721119089204,6.3483,153.97,153.86,22.7472]
[1721119089205,6.4956,153.95,153.86,22.7472]
[1721119089516,16.4255,154.03,153.92,16.2419]
[1721119089724,6.4944,153.98,153.9,6.4976]
[1721119089893,6.4939,153.99,153.91,46.29907491]
[1721119090084,6.4943,153.98,153.91,46.29907491]
[1721119090290,12.6709,154.0,153.91,7.79627491]
[1721119090497,12.6709,154.0,153.92,51.4966]
[1721119090693,12.6709,154.0,153.93,1.29892297]
[1721119091114,6.1771,154.0,153.93,1.29892297]
[1721119091414,12.6707,154.0,153.93,1.29892297]
[1721119091710,6.1771,154.0,153.93,6.4963]
[1721119091913,16.4255,154.03,153.94,51.4959]
[1721119092089,22.9181,154.03,153.95,51.4952]
[1721119092298,22.9181,154.03,153.96,1.29873432]
[1721119092493,16.4255,154.03,153.95,45.0]
[1721119092712,6.4944,153.98,153.95,45.0]
[1721119093015,16.4255,154.03,153.95,45.0]
[1721119093395,6.4943,153.98,153.95,45.0]
[1721119093592,6.4939,153.99,153.95,45.0]
[1721119094094,6.4935,154.0,153.95,45.0]
[1721119094511,6.4935,154.0,153.94,45.0]
[1721119094699,20.0,154.01,153.95,1.29893127]
[1721119094900,20.0,154.01,153.96,1.29872751]
[1721119095121,20.0,154.01,153.96,7.79382751]
[1721119095425,20.0,154.01,153.97,45.0]
[1721119095719,16.4255,154.03,153.98,1.29861692]
[1721119095907,16.4255,154.03,153.99,1.29861054]
[1721119096106,16.4255,154.03,153.97,45.0]
[1721119096305,16.4255,154.03,153.97,46.29858733]
[1721119096526,22.9181,154.03,153.98,45.0]
[1721119096705,16.4255,154.03,153.97,1.29858733]
[1721119096907,6.4931,154.01,153.97,1.29858733]
[1721119097210,22.918,154.03,153.97,1.29858733]
[1721119097409,16.4255,154.03,153.97,1.29858733]
[1721119097897,16.4255,154.03,153.97,7.79328733]
[1721119098115,16.4255,154.03,153.98,45.0]
[1721119098316,16.4255,154.03,153.99,1.29845273]
[1721119098910,22.4926,154.08,153.99,1.29845273]
[1721119099320,22.4926,154.08,154.0,6.4934]
[1721119099523,15.8416,154.08,154.01,45.0]
[1721119099713,15.8416,154.08,154.02,1.29817378]
[1721119100201,6.4905,154.07,154.02,1.29817378]
[1721119100403,15.8416,154.08,154.02,1.29817378]
[1721119100700,13.1397,154.12,154.03,6.4921]
[1721119100906,6.4892,154.11,154.04,46.2979816]
[1721119101213,15.8416,154.13,154.05,1.29796399]
[1721119101425,6.4884,154.12,154.05,1.29796399]
[1721119101602,15.8416,154.13,154.05,7.78916399]
[1721119101603,22.3296,154.13,154.05,7.78916399]
[1721119101922,22.3296,154.13,154.06,46.29778568]
[1721119101923,6.4893,154.1,154.06,46.29778568]
[1721119102224,6.4902,154.08,154.04,45.0]
[1721119102427,6.4897,154.1,154.03,45.0]
[1721119102609,6.4897,154.1,154.04,1.29803118]
[1721119102920,6.4898,154.09,154.05,1.29803012]
[1721119103238,6.4901,154.08,154.04,1.29805106]
[1721119103395,6.4901,154.08,154.03,45.0]
[1721119103596,6.4897,154.09,154.03,45.0]
[1721119103799,6.4893,154.1,154.04,1.29809953]
[1721119103998,6.4893,154.1,154.05,1.29809893]
[1721119104219,20.0,154.12,154.05,1.29809893]
[1721119104528,6.4901,154.09,154.05,1.29809893]
[1721119105237,10.0,154.04,153.9,6.5421]
[1721119105409,16.5796,154.07,153.92,6.4968]
[1721119105410,6.4935,154.0,153.92,6.4968]
[1721119105611,6.493,154.02,153.94,6.496]
[1721119105928,31.75475647,154.07,153.93,1.29870786]
[1721119105929,20.0,154.01,153.95,1.29865998]
[1721119106115,20.0,154.01,153.93,16.2401]
[1721119106308,20.0,154.01,153.94,6.4959]
[1721119106505,26.4926,154.02,153.94,6.4959]
[1721119107231,6.4936,154.0,153.93,16.2401]
[1721119107531,20.0,154.02,153.9,22.7863]
[1721119107729,20.0,154.03,153.93,16.2409]
[1721119107932,20.0,154.06,153.95,6.4955]
[1721119108226,20.0,154.06,153.93,16.2409]
[1721119108610,10.0,154.05,153.91,6.4968]
[1721119108919,6.4934,154.01,153.93,6.4964]
[1721119109119,20.0,154.04,153.94,1.2986697]
[1721119109320,6.31608235,154.06,153.94,6.4958]
[1721119109321,6.493,154.02,153.94,6.4958]
[1721119109516,20.0,154.01,153.94,6.4958]
[1721119109715,20.0,154.01,153.91,16.2422]
[1721119110124,20.0,154.05,153.92,46.29870268]
[1721119110427,20.0,154.05,153.92,45.0]
[1721119110927,6.4931,154.01,153.93,6.496]
[1721119111230,16.2296,154.04,153.94,1.29868989]
[1721119111414,6.493,154.02,153.94,6.4956]
[1721119111732,20.0,154.01,153.95,6.4956]
[1721119111935,10.0,153.98,153.85,6.0921]
[1721119112147,6.4972,153.92,153.85,6.0921]
[1721119112433,16.2389,153.96,153.85,6.0921]
[1721119112434,6.4973,153.91,153.85,6.0921]
[1721119112818,6.4969,153.92,153.85,6.0921]
[1721119113221,6.4973,153.91,153.85,6.0921]
[1721119113423,16.2389,153.96,153.82,6.5007]
[1721119113609,16.2413,153.93,153.81,28.8798]
[1721119114015,16.2413,153.93,153.81,16.2536]
[1721119114016,6.4985,153.88,153.81,16.2536]
[1721119114314,16.3823,153.9,153.81,16.2536]
[1721119114513,6.4982,153.89,153.81,22.755]
[1721119114727,6.4986,153.88,153.81,16.2536]
[1721119114913,16.3823,153.9,153.81,22.7547]
[1721119115115,6.4981,153.89,153.81,22.7547]
[1721119115444,6.4981,153.89,153.77,6.1278]
[1721119115445,16.3823,153.9,153.77,6.1278]
[1721119115617,6.4989,153.88,153.8,6.5018]
[1721119116336,16.3823,153.9,153.77,25.7278]
[1721119116337,16.3823,153.9,153.84,6.5001]
[1721119116516,16.3823,153.9,153.81,1.29973926]
[1721119116721,6.4973,153.91,153.83,6.5006]
[1721119116917,6.4968,153.92,153.84,6.5001]
[1721119117128,6.496,153.94,153.86,6.4993]
[1721119117324,6.496,153.94,153.87,45.0]
[1721119117726,6.4956,153.95,153.87,51.3185]
[1721119117943,6.496,153.94,153.87,51.3185]
[1721119118246,6.3281,153.99,153.87,51.3185]
[1721119118420,6.4956,153.95,153.87,57.8173]
[1721119118618,6.4951,153.97,153.87,51.3185]
[1721119118936,32.75554748,154.0,153.89,16.2453]
[1721119119144,6.4947,153.98,153.9,46.29909068]
[1721119119548,22.37484595,154.0,153.91,6.4969]
[1721119119743,6.77454595,154.0,153.92,62.54095151]
[1721119119951,6.4926,154.02,153.94,6.4958]
[1721119119952,6.4927,154.02,153.94,6.4958]
[1721119120422,10.38070153,154.04,153.95,22.7343]
[1721119120423,6.4924,154.03,153.95,22.7343]
[1721119120620,6.4931,154.01,153.96,45.0]
[1721119120842,10.38070153,154.04,153.96,51.4951]
[1721119121139,10.38070153,154.04,153.96,45.0]
[1721119121342,6.4921,154.04,153.96,1.29858259]
[1721119121562,6.7692773,154.05,153.97,6.4946]
[1721119121731,15.6003,154.06,153.98,51.4942]
[1721119121732,22.0913,154.06,153.98,51.4942]
[1721119121934,22.0913,154.06,153.99,1.29832158]
[1721119122134,6.4914,154.05,153.98,45.0]
[1721119122328,22.0912,154.06,153.99,1.298297]
[1721119123021,22.0912,154.06,153.98,51.4943]
[1721119123223,6.77842799,154.09,153.98,45.0]
[1721119123842,6.4901,154.08,154.0,6.4934]
[1721119124045,6.4901,154.08,154.01,46.29807064]
[1721119124241,16.1662,154.1,154.01,46.29807064]
[1721119124242,16.1662,154.1,154.01,45.0]
[1721119124453,6.4907,154.07,154.01,45.0]
[1721119124756,6.4907,154.07,154.0,45.0]
[1721119125118,6.4912,154.06,154.0,45.0]
[1721119125346,6.4914,154.05,154.0,45.0]
[1721119125645,6.4918,154.04,154.0,45.0]
[1721119125843,6.491,154.06,154.0,45.0]
[1721119126146,6.491,154.06,153.98,6.4943]
[1721119126147,6.4915,154.05,153.99,45.0]
[1721119126337,16.2244,154.09,153.98,45.0]
[1721119126527,6.4919,154.04,153.99,1.29833891]
[1721119126724,20.0,154.08,153.97,6.3358]
[1721119127422,20.0,154.08,153.98,1.29839472]
[1721119127628,20.0,154.08,153.97,6.3358]
[1721119127629,20.0,154.09,153.97,6.3358]
[1721119128050,6.4916,154.05,153.97,6.3358]
[1721119128347,20.0,154.04,153.98,7.79278226]
[1721119128534,20.0,154.04,153.99,45.0]
[1721119128730,20.0,154.04,153.98,51.4942]
[1721119128950,20.0,154.05,153.98,45.0]
[1721119129153,20.0,154.09,153.98,45.0]
[1721119129344,6.4921,154.04,153.98,45.0]
[1721119129938,16.2268,154.07,153.98,45.0]
[1721119130155,20.0,154.06,153.98,45.0]
[1721119130644,6.4914,154.05,153.98,45.0]
[1721119130847,20.0,154.04,153.97,6.3358]
[1721119131147,6.4921,154.04,153.98,1.29857285]
[1721119131356,6.4924,154.03,153.97,6.3358]
[1721119131544,6.4928,154.02,153.97,6.3358]
[1721119131864,20.0,154.06,153.93,6.1732]
[1721119132046,6.4935,154.0,153.93,6.1732]
[1721119132256,6.4944,153.98,153.9,22.7409]
[1721119132549,6.4948,153.97,153.9,22.7409]
[1721119132727,6.4948,153.97,153.9,16.2433]
[1721119132926,6.4948,153.97,153.89,6.4374]
[1721119132927,6.4957,153.95,153.89,6.4374]
[1721119133123,6.4952,153.96,153.89,12.9354]
[1721119133537,16.234,154.0,153.89,6.4374]
[1721119133755,6.4952,153.96,153.9,1.299203]
[1721119133954,16.4688,154.01,153.9,7.796503]
[1721119134250,20.0,154.0,153.94,6.4959]
[1721119134557,6.492,154.04,153.96,6.4951]
[1721119134766,23.0111,154.06,153.98,6.494]
[1721119134928,6.4914,154.05,153.99,46.29839757]
[1721119135128,6.4914,154.05,154.0,1.29843288]
[1721119135551,16.5199,154.06,153.99,45.0]
[1721119135552,6.4918,154.04,153.99,45.0]
[1721119135765,6.4918,154.04,153.98,45.0]
[1721119135960,6.4914,154.05,153.98,45.0]
[1721119136664,16.5199,154.06,153.98,45.0]
[1721119136839,6.4923,154.03,153.98,45.0]
[1721119137160,6.4914,154.05,153.99,1.29851877]
[1721119137744,16.5199,154.06,153.99,1.29851877]
[1721119137938,20.0,154.05,153.98,51.4943]
[1721119138239,26.4914,154.05,153.98,45.0]
[1721119139444,26.4914,154.05,153.98,51.4943]
[1721119139842,26.4914,154.05,153.98,45.0]
[1721119140045,6.4919,154.04,153.98,45.0]
[1721119140242,20.0,154.05,153.92,26.9914]
[1721119140759,6.4922,154.04,153.96,6.4951]
[1721119140939,20.0,154.05,153.92,10.7494]
[1721119141133,20.0,154.05,153.92,6.4965]
[1721119141334,6.4935,154.0,153.92,6.4965]
[1721119141568,20.0,154.05,153.95,6.4955]
[1721119141761,6.4921,154.04,153.97,6.4946]
[1721119141945,20.0,154.03,153.98,6.4943]
[1721119142271,20.0,154.05,153.95,16.2381]
[1721119142469,16.5199,154.06,153.98,6.4943]
[1721119142470,23.0112,154.06,153.98,6.4943]
[1721119142767,23.0112,154.06,153.99,6.4938]
[1721119143065,23.0112,154.06,154.0,45.0]
[1721119143287,6.4907,154.07,154.01,1.29830907]
[1721119143466,6.4907,154.07,153.93,43.83]
[1721119143467,38.6209406,154.06,153.86,25.9337]
[1721119143674,32.4563,154.06,153.92,6.4966]
[1721119143957,36.2768,154.07,153.91,16.2424]
[1721119143958,20.0,154.05,153.93,17.53865664]
[1721119144260,16.2768,154.07,153.93,16.24]
[1721119144261,20.0,154.06,153.93,16.24]
[1721119144569,6.493,154.02,153.95,6.4956]
[1721119144774,20.0,154.06,153.96,7.79370645]
[1721119144775,6.4923,154.03,153.96,7.79370645]
[1721119144944,20.0,154.06,153.97,45.0]
[1721119145142,6.4922,154.03,153.97,45.0]
[1721119145462,20.0,154.06,153.97,67.7312]
[1721119145463,6.4915,154.05,153.97,67.7312]
[1721119145660,26.4922,154.04,153.97,61.2365]
[1721119146162,6.4922,154.04,153.97,61.2365]
[1721119146738,20.0,154.06,153.97,61.2365]
[1721119146961,6.4922,154.03,153.97,45.0]
[1721119147161,20.0,154.06,153.96,45.0]
[1721119147342,16.2285,154.05,153.96,45.0]
[1721119147545,20.0,154.04,153.96,45.0]
[1721119148164,6.4931,154.01,153.96,45.0]
[1721119148563,26.4919,154.04,153.97,1.29866826]
[1721119148952,6.4925,154.03,153.96,45.0]
[1721119149582,26.4918,154.04,153.96,51.495]
[1721119149788,26.4918,154.04,153.96,45.0]
[1721119149946,16.2768,154.07,153.96,45.0]
[1721119150146,6.78788217,154.09,153.97,1.2983466]
[1721119150346,6.216,154.11,153.96,64.52]
[1721119150651,6.4906,154.07,154.0,16.233]
[1721119150849,6.4906,154.07,154.01,45.0]
[1721119151159,6.4909,154.06,154.01,45.0]
[1721119151880,6.4914,154.05,154.01,45.0]
[1721119152082,6.4926,154.02,154.01,45.0]
[1721119152288,6.4926,154.02,153.95,6.6491]
[1721119152289,6.4922,154.03,153.95,6.6491]
[1721119152472,16.2258,154.08,153.96,6.4951]
[1721119152657,6.4918,154.04,153.96,6.4951]
[1721119152984,6.4914,154.05,153.97,6.4947]
[1721119153282,10.0,154.1,153.95,22.8871]
[1721119153489,26.16493913,154.09,153.96,45.0]
[1721119153657,16.2255,154.08,153.96,45.0]
[1721119153856,20.0,154.07,153.96,45.0]
[1721119154067,26.4909,154.07,153.98,6.4941]
[1721119154362,6.4902,154.08,154.01,6.493]
[1721119154662,6.4902,154.08,154.02,46.29817135]
[1721119154876,6.4897,154.09,154.02,46.29817135]
[1721119155083,6.4893,154.1,154.02,52.79067135]
[1721119155386,21.94270373,154.12,154.02,45.0]
[1721119155557,21.94270373,154.12,154.01,45.0]
[1721119155759,21.94270373,154.12,154.02,1.298097]
[1721119155958,6.4894,154.1,154.02,7.790597]
[1721119156158,6.4894,154.1,154.03,45.0]
[1721119156357,6.4889,154.11,154.04,14.05614415]
[1721119156578,6.4889,154.11,154.05,46.29782874]
[1721119157561,23.29021366,154.16,154.05,45.0]
[1721119157783,16.4992,154.16,154.07,6.4905]
[1721119157990,0.8363192,154.21,154.08,46.29753293]
[1721119158159,6.4864,154.17,154.1,16.2232]
[1721119158365,6.4872,154.15,154.11,46.29729754]
[1721119158660,6.4864,154.17,154.12,45.0]
[1721119158870,6.4864,154.17,154.08,45.0]
[1721119159074,6.4859,154.18,154.1,6.4892]
[1721119159278,6.4859,154.18,154.11,46.29727894]
[1721119159458,6.4863,154.17,154.11,45.0]
[1721119159874,6.4863,154.17,154.07,35.7462]
[1721119159875,6.4859,154.18,154.12,1.29728114]
[1721119161171,6.4859,154.18,154.12,46.29728114]
[1721119161577,6.4855,154.19,154.12,51.4883]
[1721119161767,6.4851,154.2,154.12,45.0]
[1721119161972,6.4851,154.2,154.13,1.29707132]
[1721119162689,17.0485192,154.21,154.12,45.0]
[1721119162990,6.4863,154.18,154.12,45.0]
[1721119163187,17.0485192,154.21,154.11,1.29711591]
[1721119163393,20.0,154.2,154.08,20.0]
[1721119163789,20.0,154.2,154.1,6.4891]
[1721119163970,6.4863,154.17,154.09,16.2234]
[1721119164171,20.0,154.2,154.1,20.0]
[1721119164391,6.4866,154.17,154.09,22.7129]
[1721119164809,6.4866,154.17,154.1,6.4892]
[1721119165102,6.4856,154.19,154.12,6.4883]
[1721119165283,20.0,154.2,154.09,16.2234]
[1721119165489,20.8363192,154.21,154.1,45.0]
[1721119165702,6.4858,154.19,154.1,45.0]
[1721119165882,6.4858,154.19,154.11,6.4887]
[1721119166085,6.486,154.18,154.12,45.0]
[1721119167177,0.8363192,154.21,154.13,6.0064]
[1721119167383,0.8363192,154.21,154.17,6.4863]
[1721119167583,0.8363192,154.21,154.18,45.0]
[1721119168684,7.3210192,154.21,154.18,45.0]
[1721119168993,6.4852,154.2,154.18,45.0]
[1721119169202,0.8363192,154.21,154.13,6.0064]
[1721119169379,0.8363192,154.21,154.14,1.2971716]
[1721119169380,6.4851,154.2,154.14,1.2971716]
[1721119169701,6.4855,154.19,154.13,6.0064]
[1721119169880,6.4851,154.2,154.13,6.0064]
[1721119170084,0.8363192,154.21,154.14,1.29716435]
[1721119170400,0.8363192,154.21,154.08,6.5707]
[1721119170595,6.4872,154.15,154.08,6.5707]
[1721119170909,6.4878,154.14,154.08,6.5707]
[1721119171077,16.2141,154.19,154.08,6.5707]
[1721119171284,6.4885,154.12,154.04,12.6502]
[1721119171504,16.218,154.15,154.04,6.1588]
[1721119171705,20.0,154.14,154.04,6.1588]
[1721119172206,6.4893,154.1,154.04,6.1588]
[1721119172413,6.4898,154.09,154.02,16.2315]
[1721119173088,6.4898,154.09,154.02,22.7241]
[1721119173290,6.4898,154.09,154.02,16.2315]
[1721119173798,6.4891,154.11,154.03,1.29811551]
[1721119173980,20.0,154.14,154.02,16.2315]
[1721119173981,6.4894,154.1,154.02,22.724]
[1721119174186,6.4887,154.12,154.02,16.2315]
[1721119174491,16.2169,154.16,154.02,16.2315]
[1721119174492,20.0,154.11,154.04,6.4914]
[1721119174808,20.0,154.11,154.05,46.29796612]
[1721119175011,6.4876,154.14,154.05,46.29796612]
[1721119175186,6.4884,154.12,154.05,45.0]
[1721119175510,102.4777,154.17,154.03,6.4921]
[1721119175703,80.0459,154.17,154.02,16.2315]
[1721119175891,6.4884,154.12,154.02,16.2315]
[1721119176211,6.4888,154.11,154.02,16.2315]
[1721119176513,6.4897,154.09,154.03,45.0]
[1721119176702,6.4893,154.1,154.03,45.0]
[1721119177083,6.4879,154.14,154.05,6.4912]
[1721119177386,63.83,154.17,154.06,45.0]
[1721119177387,20.0,154.13,154.06,45.0]
[1721119177604,20.0,154.13,154.03,45.0]
[1721119177788,63.83,154.17,154.02,51.4926]
[1721119177789,6.4898,154.09,154.02,51.4926]
[1721119177991,6.4879,154.14,154.06,6.4905]
[1721119178204,26.4884,154.13,154.07,1.29796835]
[1721119178390,20.0,154.13,154.07,1.29796835]
[1721119178905,10.0,154.19,154.08,1.29789511]
[1721119179102,6.4882,154.13,154.06,51.4909]
[1721119179495,6.4884,154.12,154.06,45.0]
[1721119179690,6.4889,154.11,154.06,45.0]
[1721119180593,6.4883,154.13,154.06,45.0]
[1721119180787,50.61998512,154.17,154.07,1.29789717]
[1721119181009,26.4871,154.16,154.08,1.29781953]
[1721119181601,26.4871,154.16,154.08,7.78751953]
[1721119181794,20.0,154.16,154.09,45.0]
[1721119182114,6.4885,154.12,154.07,45.0]
[1721119182317,20.0,154.15,154.02,16.2307]
[1721119182628,6.4894,154.1,154.02,22.7233]
[1721119182916,6.4894,154.1,154.03,6.492]
[1721119183120,6.4894,154.1,154.02,22.7233]
[1721119183339,6.49,154.09,154.02,16.2307]
[1721119183623,6.4893,154.1,154.02,17.52874944]
[1721119183800,36.2191,154.14,154.02,16.2307]
[1721119184494,20.0,154.14,154.03,21.29805044]
[1721119184697,6.488,154.13,154.05,6.491]
[1721119184905,6.488,154.13,154.06,7.7888303]
[1721119185093,6.488,154.13,154.07,45.0]
[1721119185514,6.4876,154.14,154.06,52.7887303]
[1721119185722,20.0,154.13,154.08,1.29793034]
[1721119185920,20.0,154.13,154.06,45.0]
[1721119185921,6.4885,154.12,154.06,45.0]
[1721119186121,6.4885,154.12,154.05,45.0]
[1721119186426,20.0,154.13,154.0,22.3094]
[1721119186598,26.2188,154.15,154.04,6.4915]
[1721119186924,6.4885,154.12,154.05,1.29804179]
[1721119187098,6.488,154.13,154.05,7.78934179]
[1721119187401,6.488,154.13,154.06,6.4909]
[1721119187604,20.0,154.14,154.07,1.29791199]
[1721119187817,6.4873,154.15,154.08,1.29782226]
[1721119188004,26.4876,154.14,154.07,6.4905]
[1721119188210,26.4876,154.14,154.08,46.29782243]
[1721119188594,10.0,154.17,154.08,46.29782243]
[1721119188595,43.83,154.18,154.08,52.78752243]
[1721119188794,6.4873,154.15,154.08,52.78752243]
[1721119189000,6.4878,154.14,154.08,46.29782243]
[1721119189324,6.4878,154.14,154.08,45.0]
[1721119189822,6.4878,154.14,154.07,45.0]
[1721119190398,6.4878,154.14,154.08,1.29782016]
[1721119190600,57.8218,154.2,154.08,7.78782016]
[1721119190827,47.8218,154.2,154.09,45.0]
[1721119191136,6.487,154.16,154.09,51.4896]
[1721119191720,28.0937,154.2,154.12,6.4883]
[1721119191929,20.0,154.18,154.13,1.29747367]
[1721119192419,20.0,154.19,154.13,1.29747367]
[1721119192627,23.13237018,154.23,154.14,6.4875]
[1721119192835,7.3211192,154.21,154.15,46.29720515]
[1721119193124,0.8363192,154.21,154.15,52.78400515]
[1721119193298,0.8363192,154.21,154.15,45.0]